[Event "Late-Titled-Tuesday-Blitz-May-07-2024"]
[Site "Chess.com"]
[Date "2024.05.07"]
[Round "8"]
[White "Zampronha1971"]
[Black "sudtirolese06"]
[Result "1-0"]
[WhiteElo "2464"]
[BlackElo "2442"]
[TimeControl "180+1"]
[EndTime "15:30:55 PDT"]
[Termination "Zampronha1971 won by checkmate"]

1. e4 {[%clk 0:03:00.9]} 1... g6 {[%clk 0:02:40.3]} 2. d4 {[%clk 0:03:00.2]}
2... Bg7 {[%clk 0:02:40.3]} 3. Nc3 {[%clk 0:03:00.8]} 3... d6 {[%clk 0:02:37.5]}
4. Bg5 {[%clk 0:02:59.5]} 4... Nf6 {[%clk 0:02:35.3]} 5. Qd2 {[%clk 0:02:59.1]}
5... O-O {[%clk 0:02:34.4]} 6. f4 {[%clk 0:02:59.2]} 6... c6 {[%clk 0:02:31.2]}
7. O-O-O {[%clk 0:02:57.4]} 7... b5 {[%clk 0:02:31.5]} 8. e5 {[%clk 0:02:57.8]}
8... Nd5 {[%clk 0:02:30.3]} 9. Nxd5 {[%clk 0:02:57.1]} 9... cxd5 {[%clk
0:02:29.9]} 10. Bxb5 {[%clk 0:02:52.7]} 10... Ba6 {[%clk 0:02:27.3]} 11. Bxa6
{[%clk 0:02:51.2]} 11... Nxa6 {[%clk 0:02:28.2]} 12. Kb1 {[%clk 0:02:49.6]}
12... Rb8 {[%clk 0:02:27]} 13. Nf3 {[%clk 0:02:46.2]} 13... Qb6 {[%clk
0:02:26.9]} 14. c3 {[%clk 0:02:45.7]} 14... dxe5 {[%clk 0:02:25.6]} 15. Nxe5
{[%clk 0:02:40.1]} 15... Rb7 {[%clk 0:02:19.2]} 16. Nd3 {[%clk 0:02:36.9]} 16...
Rfb8 {[%clk 0:02:13.3]} 17. Rhe1 {[%clk 0:02:34.3]} 17... e6 {[%clk 0:02:10.5]}
18. g4 {[%clk 0:02:32.2]} 18... Nc7 {[%clk 0:02:04.7]} 19. Be7 {[%clk
0:02:22.7]} 19... Nb5 {[%clk 0:02:03.5]} 20. Bc5 {[%clk 0:02:22.5]} 20... Qa5
{[%clk 0:02:01.3]} 21. Ka1 {[%clk 0:02:17.2]} 21... Rd7 {[%clk 0:01:38.5]} 22.
h4 {[%clk 0:02:12.3]} 22... Nd6 {[%clk 0:01:38.2]} 23. Bxd6 {[%clk 0:02:11]}
23... Rxd6 {[%clk 0:01:38.3]} 24. f5 {[%clk 0:02:10.4]} 24... Ra6 {[%clk
0:01:38.1]} 25. a3 {[%clk 0:02:08.8]} 25... Rb3 {[%clk 0:01:33.6]} 26. Nb4
{[%clk 0:02:02.8]} 26... Rb6 {[%clk 0:01:11.7]} 27. Ka2 {[%clk 0:01:52]} 27...
Qa4 {[%clk 0:01:11.3]} 28. Rc1 {[%clk 0:01:45.3]} 28... Bf8 {[%clk 0:01:10.2]}
29. Qc2 {[%clk 0:01:43.5]} 29... R3xb4 {[%clk 0:00:54.8]} 30. cxb4 {[%clk
0:01:43.4]} 30... Qa6 {[%clk 0:00:49.1]} 31. fxe6 {[%clk 0:01:42.4]} 31... fxe6
{[%clk 0:00:46]} 32. h5 {[%clk 0:01:32.6]} 32... Rxb4 {[%clk 0:00:45.3]} 33.
hxg6 {[%clk 0:01:30.7]} 33... Rxd4 {[%clk 0:00:29.6]} 34. gxh7+ {[%clk
0:01:30.2]} 34... Kg7 {[%clk 0:00:26.4]} 35. Qc3 {[%clk 0:01:17.4]} 35... Qc4+
{[%clk 0:00:20.3]} 36. Qxc4 {[%clk 0:01:17]} 36... dxc4 {[%clk 0:00:20.7]} 37.
Rxe6 {[%clk 0:01:13.4]} 37... Kxh7 {[%clk 0:00:20.7]} 38. g5 {[%clk 0:01:04.2]}
38... Bg7 {[%clk 0:00:19.6]} 39. g6+ {[%clk 0:01:03.3]} 39... Kh6 {[%clk
0:00:19.7]} 40. Rh1+ {[%clk 0:01:01.8]} 40... Kg5 {[%clk 0:00:19]} 41. Rh7
{[%clk 0:00:59.9]} 41... Kf5 {[%clk 0:00:17.2]} 42. Ra6 {[%clk 0:00:55.4]} 42...
Be5 {[%clk 0:00:17.1]} 43. Rf7+ {[%clk 0:00:54.4]} 43... Ke4 {[%clk 0:00:16.6]}
44. g7 {[%clk 0:00:51.7]} 44... Rd2 {[%clk 0:00:16.8]} 45. Rb7 {[%clk
0:00:49.1]} 45... Rg2 {[%clk 0:00:16.6]} 46. Raxa7 {[%clk 0:00:48.1]} 46... c3
{[%clk 0:00:16.7]} 47. g8=Q {[%clk 0:00:44.1]} 47... Rxg8 {[%clk 0:00:15.9]} 48.
bxc3 {[%clk 0:00:44.3]} 48... Rg2+ {[%clk 0:00:16.8]} 49. Kb3 {[%clk 0:00:43.3]}
49... Rg3 {[%clk 0:00:16.4]} 50. Rc7 {[%clk 0:00:40.3]} 50... Bxc7 {[%clk
0:00:16.5]} 51. Rxc7 {[%clk 0:00:41.2]} 51... Kd5 {[%clk 0:00:17.4]} 52. Kb4
{[%clk 0:00:38.9]} 52... Kd6 {[%clk 0:00:17.2]} 53. Rc4 {[%clk 0:00:38.5]} 53...
Rg1 {[%clk 0:00:17]} 54. a4 {[%clk 0:00:36.8]} 54... Rb1+ {[%clk 0:00:17.3]} 55.
Ka5 {[%clk 0:00:36.7]} 55... Kd7 {[%clk 0:00:15.5]} 56. Ka6 {[%clk 0:00:36]}
56... Kd6 {[%clk 0:00:15.4]} 57. a5 {[%clk 0:00:36.1]} 57... Kd5 {[%clk
0:00:16.3]} 58. Rc8 {[%clk 0:00:36]} 58... Kd6 {[%clk 0:00:17]} 59. Ka7 {[%clk
0:00:35.7]} 59... Kd7 {[%clk 0:00:17.2]} 60. Rc4 {[%clk 0:00:35.6]} 60... Kd6
{[%clk 0:00:16.3]} 61. a6 {[%clk 0:00:35.5]} 61... Kd5 {[%clk 0:00:16.7]} 62.
Rc8 {[%clk 0:00:35.4]} 62... Rb3 {[%clk 0:00:17.6]} 63. Ka8 {[%clk 0:00:34.2]}
63... Ra3 {[%clk 0:00:17.8]} 64. a7 {[%clk 0:00:34.4]} 64... Rb3 {[%clk
0:00:18.1]} 65. Rb8 {[%clk 0:00:28.1]} 65... Rxc3 {[%clk 0:00:14.5]} 66. Rb2
{[%clk 0:00:20.6]} 66... Kc6 {[%clk 0:00:02.7]} 67. Kb8 {[%clk 0:00:17.7]} 67...
Kd7 {[%clk 0:00:02.6]} 68. Rd2+ {[%clk 0:00:17.3]} 68... Ke7 {[%clk 0:00:01.4]}
69. a8=Q {[%clk 0:00:17]} 69... Rc7 {[%clk 0:00:01.7]} 70. Qb7 {[%clk 0:00:16]}
70... Rxb7+ {[%clk 0:00:01.6]} 71. Kxb7 {[%clk 0:00:16.2]} 71... Ke6 {[%clk
0:00:02.1]} 72. Kc6 {[%clk 0:00:16.7]} 72... Ke5 {[%clk 0:00:03]} 73. Rd5+
{[%clk 0:00:16.4]} 73... Ke4 {[%clk 0:00:03.9]} 74. Kd6 {[%clk 0:00:16.5]} 74...
Kf4 {[%clk 0:00:04.8]} 75. Re5 {[%clk 0:00:16.2]} 75... Kf3 {[%clk 0:00:04.7]}
76. Kd5 {[%clk 0:00:16.1]} 76... Kf4 {[%clk 0:00:05.6]} 77. Ke6 {[%clk 0:00:14]}
77... Kf3 {[%clk 0:00:06.5]} 78. Kf5 {[%clk 0:00:14.1]} 78... Kf2 {[%clk
0:00:07.4]} 79. Kf4 {[%clk 0:00:12.5]} 79... Kg2 {[%clk 0:00:07.4]} 80. Re2+
{[%clk 0:00:11.9]} 80... Kf1 {[%clk 0:00:07.4]} 81. Kf3 {[%clk 0:00:11.6]} 81...
Kg1 {[%clk 0:00:08.3]} 82. Re6 {[%clk 0:00:11.6]} 82... Kf1 {[%clk 0:00:09.2]}
83. Re7 {[%clk 0:00:10.7]} 83... Kg1 {[%clk 0:00:09.1]} 84. Rh7 {[%clk
0:00:10.8]} 84... Kf1 {[%clk 0:00:09.1]} 85. Rh1# {[%clk 0:00:07.1]} 1-0

[Event "Late-Titled-Tuesday-Blitz-May-07-2024"]
[Site "Chess.com"]
[Date "2024.05.07"]
[Round "8"]
[White "WPWPWP-2015"]
[Black "Hilary46"]
[Result "1-0"]
[WhiteElo "2447"]
[BlackElo "2686"]
[TimeControl "180+1"]
[EndTime "15:31:21 PDT"]
[Termination "WPWPWP-2015 won by checkmate"]

1. e4 {[%clk 0:03:00.9]} 1... e5 {[%clk 0:02:59.9]} 2. Nf3 {[%clk 0:03:00.2]}
2... Nc6 {[%clk 0:03:00.5]} 3. Bb5 {[%clk 0:02:59.6]} 3... a6 {[%clk 0:03:00.6]}
4. Ba4 {[%clk 0:02:59.9]} 4... Nf6 {[%clk 0:03:01.1]} 5. O-O {[%clk 0:03:00]}
5... Nxe4 {[%clk 0:03:01.7]} 6. d4 {[%clk 0:02:59.1]} 6... b5 {[%clk 0:03:02.4]}
7. Bb3 {[%clk 0:02:58.9]} 7... d5 {[%clk 0:03:03.1]} 8. dxe5 {[%clk 0:02:59.1]}
8... Be6 {[%clk 0:03:03.7]} 9. Be3 {[%clk 0:02:59.1]} 9... Nc5 {[%clk
0:03:01.5]} 10. c3 {[%clk 0:02:58.7]} 10... Nxb3 {[%clk 0:03:00.5]} 11. axb3
{[%clk 0:02:58.7]} 11... Be7 {[%clk 0:02:58.6]} 12. Nbd2 {[%clk 0:02:58.1]}
12... O-O {[%clk 0:02:58.2]} 13. Re1 {[%clk 0:02:58]} 13... a5 {[%clk
0:02:52.9]} 14. Qe2 {[%clk 0:02:56.4]} 14... Rb8 {[%clk 0:02:42.9]} 15. h3
{[%clk 0:02:55.5]} 15... Qd7 {[%clk 0:02:35.3]} 16. Nd4 {[%clk 0:02:50.6]} 16...
Nxd4 {[%clk 0:02:34.8]} 17. cxd4 {[%clk 0:02:50.6]} 17... Ra8 {[%clk 0:02:34.7]}
18. Rec1 {[%clk 0:02:48.9]} 18... a4 {[%clk 0:02:31.2]} 19. Qd3 {[%clk
0:02:36.4]} 19... a3 {[%clk 0:02:16.8]} 20. bxa3 {[%clk 0:02:31.4]} 20... Bxa3
{[%clk 0:02:17.7]} 21. Re1 {[%clk 0:02:21.2]} 21... Bb4 {[%clk 0:02:14.5]} 22.
Rec1 {[%clk 0:02:05.5]} 22... Bf5 {[%clk 0:02:12.2]} 23. Qe2 {[%clk 0:02:05.4]}
23... c6 {[%clk 0:01:54.2]} 24. Nf3 {[%clk 0:02:00.4]} 24... h6 {[%clk
0:01:45.7]} 25. Rf1 {[%clk 0:01:49.9]} 25... Qb7 {[%clk 0:01:27.3]} 26. Qb2
{[%clk 0:01:40]} 26... Rxa1 {[%clk 0:01:24]} 27. Rxa1 {[%clk 0:01:38.8]} 27...
Ra8 {[%clk 0:01:24.9]} 28. Bd2 {[%clk 0:01:37.3]} 28... Be7 {[%clk 0:01:22.9]}
29. b4 {[%clk 0:00:52.4]} 29... Be4 {[%clk 0:01:06.7]} 30. Ra5 {[%clk
0:00:47.8]} 30... Bxf3 {[%clk 0:01:04.1]} 31. gxf3 {[%clk 0:00:47.2]} 31... Re8
{[%clk 0:00:50.8]} 32. Qc2 {[%clk 0:00:44]} 32... Bd8 {[%clk 0:00:45.3]} 33. Ra3
{[%clk 0:00:39.6]} 33... Qd7 {[%clk 0:00:43.1]} 34. f4 {[%clk 0:00:39.3]} 34...
Bb6 {[%clk 0:00:34.8]} 35. Qd3 {[%clk 0:00:25.3]} 35... g6 {[%clk 0:00:32.7]}
36. Ra6 {[%clk 0:00:23.4]} 36... Qb7 {[%clk 0:00:30.6]} 37. Ra3 {[%clk
0:00:22.3]} 37... Ra8 {[%clk 0:00:20.1]} 38. Be3 {[%clk 0:00:22.2]} 38... Rxa3
{[%clk 0:00:13.9]} 39. Qxa3 {[%clk 0:00:21.7]} 39... Qc8 {[%clk 0:00:10.7]} 40.
Kg2 {[%clk 0:00:20.2]} 40... Kg7 {[%clk 0:00:09.6]} 41. Qc3 {[%clk 0:00:18.2]}
41... Qa8 {[%clk 0:00:09.4]} 42. Qc2 {[%clk 0:00:17.5]} 42... Qc8 {[%clk
0:00:07.2]} 43. Kg3 {[%clk 0:00:16]} 43... Qe6 {[%clk 0:00:07.1]} 44. Qd3 {[%clk
0:00:14.5]} 44... Bd8 {[%clk 0:00:07.5]} 45. Kg2 {[%clk 0:00:13.1]} 45... Be7
{[%clk 0:00:08]} 46. Qb1 {[%clk 0:00:12.7]} 46... Kf8 {[%clk 0:00:03.5]} 47. Bd2
{[%clk 0:00:12.9]} 47... Ke8 {[%clk 0:00:03]} 48. Qc2 {[%clk 0:00:11.5]} 48...
Qc8 {[%clk 0:00:03.3]} 49. Qd3 {[%clk 0:00:11.1]} 49... Kd7 {[%clk 0:00:01.8]}
50. Qa3 {[%clk 0:00:10.8]} 50... Ke8 {[%clk 0:00:01.9]} 51. Qa2 {[%clk
0:00:10.7]} 51... Qd7 {[%clk 0:00:02.5]} 52. Qb1 {[%clk 0:00:10.7]} 52... Kf8
{[%clk 0:00:03.2]} 53. Qc2 {[%clk 0:00:10.6]} 53... Kg7 {[%clk 0:00:03.8]} 54.
Kg3 {[%clk 0:00:10.8]} 54... h5 {[%clk 0:00:03.5]} 55. Kg2 {[%clk 0:00:10.9]}
55... Qe6 {[%clk 0:00:04.2]} 56. Qd3 {[%clk 0:00:11.1]} 56... Bf8 {[%clk
0:00:03.9]} 57. Qb1 {[%clk 0:00:10.8]} 57... Be7 {[%clk 0:00:04.8]} 58. Qa2
{[%clk 0:00:10.9]} 58... Kf8 {[%clk 0:00:05.4]} 59. Qa8+ {[%clk 0:00:10.9]}
59... Kg7 {[%clk 0:00:05.5]} 60. Qa6 {[%clk 0:00:10.8]} 60... Qd7 {[%clk
0:00:05.4]} 61. Qa1 {[%clk 0:00:09.7]} 61... Bd8 {[%clk 0:00:04.9]} 62. Qb1
{[%clk 0:00:09.8]} 62... Bb6 {[%clk 0:00:05.4]} 63. Qd3 {[%clk 0:00:08.7]} 63...
Qa7 {[%clk 0:00:06]} 64. Be3 {[%clk 0:00:08.7]} 64... Qa2 {[%clk 0:00:05.2]} 65.
f5 {[%clk 0:00:08.1]} 65... Qc4 {[%clk 0:00:04.4]} 66. f6+ {[%clk 0:00:07.6]}
66... Kf8 {[%clk 0:00:05]} 67. Qd2 {[%clk 0:00:06.1]} 67... Ke8 {[%clk
0:00:04.3]} 68. Kg3 {[%clk 0:00:04.6]} 68... Kd7 {[%clk 0:00:04.7]} 69. Kf4
{[%clk 0:00:03.7]} 69... Qf1 {[%clk 0:00:04.4]} 70. Kg3 {[%clk 0:00:02.8]} 70...
h4+ {[%clk 0:00:03.2]} 71. Kxh4 {[%clk 0:00:01.9]} 71... Qg2 {[%clk 0:00:03.7]}
72. Qe2 {[%clk 0:00:01.4]} 72... Bd8 {[%clk 0:00:02.1]} 73. Qg4+ {[%clk
0:00:01.3]} 73... Qxg4+ {[%clk 0:00:01.4]} 74. Kxg4 {[%clk 0:00:02.2]} 74... Ke6
{[%clk 0:00:01.9]} 75. h4 {[%clk 0:00:02.2]} 75... Bb6 {[%clk 0:00:01.4]} 76. f4
{[%clk 0:00:02.4]} 76... Bc7 {[%clk 0:00:01.6]} 77. f5+ {[%clk 0:00:02.5]} 77...
gxf5+ {[%clk 0:00:02.1]} 78. Kg5 {[%clk 0:00:02.9]} 78... Bb6 {[%clk 0:00:01.7]}
79. h5 {[%clk 0:00:02.9]} 79... c5 {[%clk 0:00:02.3]} 80. h6 {[%clk 0:00:02.4]}
80... cxd4 {[%clk 0:00:02.1]} 81. Bd2 {[%clk 0:00:02.1]} 81... d3 {[%clk
0:00:01.8]} 82. h7 {[%clk 0:00:02.4]} 82... Bd4 {[%clk 0:00:00.8]} 83. h8=Q
{[%clk 0:00:02.3]} 83... Kxe5 {[%clk 0:00:01.1]} 84. Qe8+ {[%clk 0:00:02.2]}
84... Kd6 {[%clk 0:00:02]} 85. Kxf5 {[%clk 0:00:02.5]} 85... Bb2 {[%clk
0:00:01.8]} 86. Qe7+ {[%clk 0:00:02.8]} 86... Kc6 {[%clk 0:00:02.7]} 87. Qxf7
{[%clk 0:00:02.8]} 87... Kb6 {[%clk 0:00:03.6]} 88. Qe6+ {[%clk 0:00:03.2]}
88... Kb7 {[%clk 0:00:03.7]} 89. Qe7+ {[%clk 0:00:03.7]} 89... Ka6 {[%clk
0:00:04.6]} 90. Qe6+ {[%clk 0:00:04]} 90... Kb7 {[%clk 0:00:04.3]} 91. Qxd5+
{[%clk 0:00:04.5]} 91... Ka6 {[%clk 0:00:05.2]} 92. Qxd3 {[%clk 0:00:04.8]}
92... Bxf6 {[%clk 0:00:04.8]} 93. Qd6+ {[%clk 0:00:04.9]} 93... Kb7 {[%clk
0:00:05.6]} 94. Kxf6 {[%clk 0:00:05.1]} 94... Ka8 {[%clk 0:00:05.5]} 95. Qe7
{[%clk 0:00:05.1]} 95... Kb8 {[%clk 0:00:05.4]} 96. Be3 {[%clk 0:00:05.5]} 96...
Ka8 {[%clk 0:00:06.3]} 97. Qa7# {[%clk 0:00:04.9]} 1-0

[Event "Late-Titled-Tuesday-Blitz-May-07-2024"]
[Site "Chess.com"]
[Date "2024.05.07"]
[Round "9"]
[White "1g60-1"]
[Black "JaackCamel"]
[Result "1-0"]
[WhiteElo "2422"]
[BlackElo "2208"]
[TimeControl "180+1"]
[EndTime "15:43:14 PDT"]
[Termination "1g60-1 won by resignation"]

1. e4 {[%clk 0:03:00.9]} 1... e6 {[%clk 0:02:59.5]} 2. d4 {[%clk 0:02:59.1]}
2... d5 {[%clk 0:02:59.2]} 3. Nd2 {[%clk 0:02:59.4]} 3... c5 {[%clk 0:02:57]} 4.
Ngf3 {[%clk 0:02:59.2]} 4... cxd4 {[%clk 0:02:56]} 5. Nxd4 {[%clk 0:02:59]} 5...
Nc6 {[%clk 0:02:55.1]} 6. Bb5 {[%clk 0:02:57.9]} 6... Bd7 {[%clk 0:02:54.9]} 7.
Nxc6 {[%clk 0:02:57.8]} 7... bxc6 {[%clk 0:02:52.4]} 8. Bd3 {[%clk 0:02:58]}
8... e5 {[%clk 0:02:40.8]} 9. O-O {[%clk 0:02:53.5]} 9... Nf6 {[%clk 0:02:38.4]}
10. c4 {[%clk 0:02:50]} 10... d4 {[%clk 0:02:37.7]} 11. h3 {[%clk 0:02:46.4]}
11... Bd6 {[%clk 0:02:27.1]} 12. f4 {[%clk 0:02:33.8]} 12... exf4 {[%clk
0:02:11.3]} 13. e5 {[%clk 0:02:32.6]} 13... Bxe5 {[%clk 0:02:11.2]} 14. Re1
{[%clk 0:02:32.5]} 14... O-O {[%clk 0:01:57.3]} 15. Rxe5 {[%clk 0:02:31]} 15...
Qc7 {[%clk 0:01:54.7]} 16. Nf3 {[%clk 0:02:27.8]} 16... c5 {[%clk 0:01:53]} 17.
Bxf4 {[%clk 0:02:24]} 17... Qb6 {[%clk 0:01:48]} 18. b3 {[%clk 0:02:18.8]} 18...
Rae8 {[%clk 0:01:47.2]} 19. Rxe8 {[%clk 0:02:14.1]} 19... Rxe8 {[%clk
0:01:46.4]} 20. Qd2 {[%clk 0:02:13.8]} 20... h6 {[%clk 0:01:43]} 21. Re1 {[%clk
0:02:12]} 21... Rxe1+ {[%clk 0:01:40.9]} 22. Qxe1 {[%clk 0:02:11]} 22... Be6
{[%clk 0:01:38.4]} 23. Qe5 {[%clk 0:02:05]} 23... Nd7 {[%clk 0:01:31.9]} 24. Qc7
{[%clk 0:01:52.2]} 24... Qa6 {[%clk 0:01:30.3]} 25. Qd8+ {[%clk 0:01:46.9]}
25... Nf8 {[%clk 0:01:30]} 26. Bd6 {[%clk 0:01:44.6]} 1-0

[Event "Late-Titled-Tuesday-Blitz-May-07-2024"]
[Site "Chess.com"]
[Date "2024.05.07"]
[Round "9"]
[White "protectiago"]
[Black "NM_Koval"]
[Result "1-0"]
[WhiteElo "2080"]
[BlackElo "2223"]
[TimeControl "180+1"]
[EndTime "15:43:26 PDT"]
[Termination "protectiago won by resignation"]

1. d4 {[%clk 0:02:59.6]} 1... c5 {[%clk 0:02:57]} 2. d5 {[%clk 0:02:59.3]} 2...
f5 {[%clk 0:02:56.4]} 3. g3 {[%clk 0:02:54.6]} 3... g6 {[%clk 0:02:54.7]} 4. Bg2
{[%clk 0:02:54.6]} 4... d6 {[%clk 0:02:54.3]} 5. Nf3 {[%clk 0:02:54.4]} 5... Bg7
{[%clk 0:02:54.1]} 6. O-O {[%clk 0:02:54.1]} 6... b5 {[%clk 0:02:53.7]} 7. c4
{[%clk 0:02:37.4]} 7... bxc4 {[%clk 0:02:52.4]} 8. Nfd2 {[%clk 0:02:35.1]} 8...
Ba6 {[%clk 0:02:49.4]} 9. Nxc4 {[%clk 0:02:24.1]} 9... Qc8 {[%clk 0:02:31.2]}
10. Qc2 {[%clk 0:02:14.4]} 10... Bxc4 {[%clk 0:02:28.4]} 11. Qxc4 {[%clk
0:02:13.5]} 11... Qa6 {[%clk 0:02:29]} 12. Qc2 {[%clk 0:02:10.2]} 12... Nd7
{[%clk 0:02:25.5]} 13. Nc3 {[%clk 0:02:08.5]} 13... Rb8 {[%clk 0:02:25.4]} 14.
e4 {[%clk 0:02:00.9]} 14... fxe4 {[%clk 0:02:24]} 15. Nxe4 {[%clk 0:01:50.3]}
15... h6 {[%clk 0:02:17.7]} 16. Re1 {[%clk 0:01:30.2]} 16... Kf7 {[%clk
0:02:15.8]} 17. Bh3 {[%clk 0:01:11.8]} 17... Bd4 {[%clk 0:02:06.5]} 18. Bxd7
{[%clk 0:00:42.2]} 1-0

[Event "Late-Titled-Tuesday-Blitz-May-07-2024"]
[Site "Chess.com"]
[Date "2024.05.07"]
[Round "9"]
[White "cycygogne"]
[Black "simaopdias"]
[Result "1-0"]
[WhiteElo "2180"]
[BlackElo "2282"]
[TimeControl "180+1"]
[EndTime "15:43:59 PDT"]
[Termination "cycygogne won by resignation"]

1. e4 {[%clk 0:03:00.9]} 1... c5 {[%clk 0:02:59.7]} 2. Nf3 {[%clk 0:03:00.7]}
2... g6 {[%clk 0:03:00.6]} 3. d4 {[%clk 0:03:00.2]} 3... cxd4 {[%clk 0:03:01.5]}
4. Nxd4 {[%clk 0:03:00.8]} 4... Nc6 {[%clk 0:03:01.4]} 5. Nc3 {[%clk 0:03:00.9]}
5... Bg7 {[%clk 0:03:02.1]} 6. Be3 {[%clk 0:03:00.8]} 6... Nf6 {[%clk
0:03:02.7]} 7. Nxc6 {[%clk 0:03:01.1]} 7... bxc6 {[%clk 0:03:02.7]} 8. e5 {[%clk
0:03:01.7]} 8... Nd5 {[%clk 0:03:01.8]} 9. Nxd5 {[%clk 0:03:01.6]} 9... cxd5
{[%clk 0:03:02.7]} 10. Qxd5 {[%clk 0:03:02]} 10... Rb8 {[%clk 0:03:01]} 11. Bxa7
{[%clk 0:03:02]} 11... Rxb2 {[%clk 0:02:52.5]} 12. Bd4 {[%clk 0:03:01.9]} 12...
Bb7 {[%clk 0:02:50.6]} 13. Qc5 {[%clk 0:02:47]} 13... d6 {[%clk 0:02:22.2]} 14.
exd6 {[%clk 0:02:46.8]} 14... O-O {[%clk 0:02:16]} 15. Bxg7 {[%clk 0:02:40]}
15... exd6 {[%clk 0:02:15.9]} 16. Qc3 {[%clk 0:02:24.7]} 16... Re8+ {[%clk
0:02:05.1]} 17. Be2 {[%clk 0:02:24]} 17... Qb6 {[%clk 0:01:30.1]} 18. Qxb2
{[%clk 0:01:51.3]} 18... Rxe2+ {[%clk 0:01:25.4]} 19. Kxe2 {[%clk 0:01:50.9]}
19... Ba6+ {[%clk 0:01:23.6]} 20. Ke1 {[%clk 0:01:44.3]} 20... Qa5+ {[%clk
0:01:22.3]} 21. Bc3 {[%clk 0:01:35.8]} 21... Qd8 {[%clk 0:01:12.5]} 22. Kd1
{[%clk 0:01:21.4]} 1-0

[Event "Late-Titled-Tuesday-Blitz-May-07-2024"]
[Site "Chess.com"]
[Date "2024.05.07"]
[Round "9"]
[White "secretworker2027"]
[Black "Magicmaster17"]
[Result "1-0"]
[WhiteElo "2688"]
[BlackElo "2875"]
[TimeControl "180+1"]
[EndTime "15:44:11 PDT"]
[Termination "secretworker2027 won by resignation"]

1. e4 {[%clk 0:02:57.1]} 1... e5 {[%clk 0:02:59.8]} 2. Nf3 {[%clk 0:02:55.2]}
2... Nc6 {[%clk 0:03:00.7]} 3. Bb5 {[%clk 0:02:53]} 3... Nge7 {[%clk 0:02:58.3]}
4. Nc3 {[%clk 0:02:48]} 4... Ng6 {[%clk 0:02:57.8]} 5. O-O {[%clk 0:02:46.3]}
5... Bc5 {[%clk 0:02:53.6]} 6. Nd5 {[%clk 0:02:41.4]} 6... a6 {[%clk 0:02:51.9]}
7. Ba4 {[%clk 0:02:40.2]} 7... b5 {[%clk 0:02:47.2]} 8. Bb3 {[%clk 0:02:40.1]}
8... Na5 {[%clk 0:02:47.1]} 9. d4 {[%clk 0:02:39.8]} 9... Nxb3 {[%clk
0:02:46.6]} 10. axb3 {[%clk 0:02:38.9]} 10... exd4 {[%clk 0:02:46.5]} 11. Nxd4
{[%clk 0:02:39.8]} 11... c6 {[%clk 0:02:34.1]} 12. Ne3 {[%clk 0:02:27.1]} 12...
O-O {[%clk 0:02:33.5]} 13. Ndf5 {[%clk 0:02:26.9]} 13... d5 {[%clk 0:02:32.3]}
14. b4 {[%clk 0:02:18.7]} 14... Bxb4 {[%clk 0:02:24.4]} 15. Qd4 {[%clk
0:02:16.3]} 15... Qf6 {[%clk 0:02:15.7]} 16. Qxb4 {[%clk 0:02:12.8]} 16... Re8
{[%clk 0:02:12.5]} 17. Nd6 {[%clk 0:01:41.6]} 17... Qe7 {[%clk 0:02:11.1]} 18.
exd5 {[%clk 0:01:30.4]} 18... Rd8 {[%clk 0:02:05.2]} 19. dxc6 {[%clk 0:01:07]}
19... Rxd6 {[%clk 0:02:00.4]} 20. c4 {[%clk 0:00:58.8]} 20... Rxc6 {[%clk
0:01:41.8]} 21. Qxe7 {[%clk 0:00:58]} 21... Nxe7 {[%clk 0:01:42.7]} 22. cxb5
{[%clk 0:00:58.4]} 22... Rb6 {[%clk 0:01:43.1]} 23. bxa6 {[%clk 0:00:58.3]}
23... Raxa6 {[%clk 0:01:43]} 24. Rxa6 {[%clk 0:00:58.2]} 24... Bxa6 {[%clk
0:01:43.9]} 25. Rd1 {[%clk 0:00:57.1]} 25... f6 {[%clk 0:01:43.7]} 26. h3 {[%clk
0:00:48.2]} 26... Kf7 {[%clk 0:01:43.1]} 27. Rd7 {[%clk 0:00:46.1]} 27... Ke6
{[%clk 0:01:37]} 28. Rxe7+ {[%clk 0:00:46.3]} 1-0

[Event "Late-Titled-Tuesday-Blitz-May-07-2024"]
[Site "Chess.com"]
[Date "2024.05.07"]
[Round "9"]
[White "MuhittinBuker"]
[Black "howitzer14"]
[Result "0-1"]
[WhiteElo "2212"]
[BlackElo "3015"]
[TimeControl "180+1"]
[EndTime "15:44:16 PDT"]
[Termination "howitzer14 won by resignation"]

1. d4 {[%clk 0:03:00.9]} 1... Nf6 {[%clk 0:02:58]} 2. c4 {[%clk 0:02:57.1]} 2...
c5 {[%clk 0:02:57.9]} 3. d5 {[%clk 0:02:57.1]} 3... b5 {[%clk 0:02:58.3]} 4.
cxb5 {[%clk 0:02:57.5]} 4... a6 {[%clk 0:02:58.1]} 5. bxa6 {[%clk 0:02:57.8]}
5... g6 {[%clk 0:02:58.4]} 6. Nc3 {[%clk 0:02:56.9]} 6... Bg7 {[%clk 0:02:58.3]}
7. e4 {[%clk 0:02:56.9]} 7... O-O {[%clk 0:02:58.4]} 8. Nf3 {[%clk 0:02:56.7]}
8... Qa5 {[%clk 0:02:58.1]} 9. Bd3 {[%clk 0:02:55.5]} 9... Nxd5 {[%clk
0:02:55.8]} 10. exd5 {[%clk 0:02:52.9]} 10... Bxc3+ {[%clk 0:02:55.4]} 11. Kf1
{[%clk 0:02:52.2]} 11... Bg7 {[%clk 0:02:50.5]} 12. g3 {[%clk 0:02:51.5]} 12...
Nxa6 {[%clk 0:02:38.8]} 13. Kg2 {[%clk 0:02:51]} 13... Bb7 {[%clk 0:02:33.6]}
14. Bc4 {[%clk 0:02:47.2]} 14... Nc7 {[%clk 0:02:16.4]} 15. h4 {[%clk
0:02:35.9]} 15... e6 {[%clk 0:02:12.6]} 16. d6 {[%clk 0:02:29.9]} 16... Nb5
{[%clk 0:02:12]} 17. h5 {[%clk 0:02:28.5]} 17... Nd4 {[%clk 0:01:57.3]} 18. Be2
{[%clk 0:02:21.5]} 18... Qb6 {[%clk 0:01:48.7]} 19. Be3 {[%clk 0:02:15]} 19...
Nxe2 {[%clk 0:01:40.5]} 20. Qxe2 {[%clk 0:02:12.7]} 20... Qxd6 {[%clk
0:01:41.1]} 21. g4 {[%clk 0:01:50.1]} 21... Ra4 {[%clk 0:01:33.9]} 22. g5 {[%clk
0:01:24.1]} 22... Qd5 {[%clk 0:01:14.7]} 23. Rh3 {[%clk 0:01:22.3]} 23... Rg4+
{[%clk 0:01:09.1]} 24. Kf1 {[%clk 0:01:21.8]} 24... Ra8 {[%clk 0:01:06.5]} 25.
a3 {[%clk 0:01:19.6]} 25... Ba6 {[%clk 0:01:06.3]} 0-1